[Event "Titled Tuesday Blitz May 2 Early 2023"]
[White "Szente Varga, Fruzsina"]
[Black "Bruedigam, Martin"]
[WhiteFideId "712264"]
[BlackFideId "24608033"]
[WhiteElo "1994"]
[BlackElo "2331"]
[Result "0-1"]
[Round "01"]
[TimeControl "180+2"]
[Date "2023.05.02"]
[WhiteClock "0:00:00"]
[BlackClock "0:00:00"]

1. e4 {[%clk 0:00:01]}  c6 {[%clk 0:00:01]} 2. d4 {[%clk 0:00:01]}  d5 {[%clk 0:00:01]} 3. e5 {[%clk 0:00:01]}  Bf5 {[%clk 0:00:01]} 4. Bd3 {[%clk 0:00:01]}  Bxd3 {[%clk 0:00:01]} 5. Qxd3 {[%clk 0:00:01]}  e6 {[%clk 0:00:01]} 6. c3 {[%clk 0:00:01]}  c5 {[%clk 0:00:01]} 7. Ne2 {[%clk 0:00:01]}  Nc6 {[%clk 0:00:01]} 8. O-O {[%clk 0:00:01]}  Qb6 {[%clk 0:00:01]} 9. Nd2 {[%clk 0:00:01]}  Nge7 {[%clk 0:00:01]} 10. f4 {[%clk 0:00:01]}  Nf5 {[%clk 0:00:01]} 11. Nf3 {[%clk 0:00:01]}  h5 {[%clk 0:00:01]} 12. Kh1 {[%clk 0:00:01]}  h4 {[%clk 0:00:01]} 13. a3 {[%clk 0:00:00]}  a5 {[%clk 0:00:01]} 14. Rb1 {[%clk 0:00:00]}  a4 {[%clk 0:00:01]} 15. Rd1 {[%clk 0:00:00]}  Be7 {[%clk 0:00:01]} 16. Bd2 {[%clk 0:00:00]}  g6 {[%clk 0:00:01]} 17. Be1 {[%clk 0:00:00]}  Qa6 {[%clk 0:00:01]} 18. Qxa6 {[%clk 0:00:00]}  bxa6 {[%clk 0:00:01]} 19. b4 {[%clk 0:00:00]}  axb3 {[%clk 0:00:01]} 20. Rxb3 {[%clk 0:00:00]}  Kd7 {[%clk 0:00:01]} 21. Rb7+ {[%clk 0:00:00]}  Kc8 {[%clk 0:00:01]} 22. Rdb1 {[%clk 0:00:00]}  Rb8 {[%clk 0:00:01]} 23. Rxb8+ {[%clk 0:00:00]}  Nxb8 {[%clk 0:00:01]} 24. Rb6 {[%clk 0:00:00]}  Kc7 {[%clk 0:00:01]} 25. Rb2 {[%clk 0:00:00]}  c4 {[%clk 0:00:01]} 26. Kg1 {[%clk 0:00:00]}  Nd7 {[%clk 0:00:01]} 27. Kf2 {[%clk 0:00:00]}  Kc6 {[%clk 0:00:01]} 28. Kf1 {[%clk 0:00:00]}  Ne3+ {[%clk 0:00:01]} 29. Kg1 {[%clk 0:00:00]}  Nb6 {[%clk 0:00:01]} 30. Bf2 {[%clk 0:00:00]}  Nf5 {[%clk 0:00:01]} 31. Be1 {[%clk 0:00:00]}  h3 {[%clk 0:00:00]} 32. g4 {[%clk 0:00:00]}  Ne3 {[%clk 0:00:00]} 33. g5 {[%clk 0:00:00]}  Ra8 {[%clk 0:00:00]} 34. Ra2 {[%clk 0:00:00]}  Na4 {[%clk 0:00:00]} 35. Kf2 {[%clk 0:00:00]}  Nf5 {[%clk 0:00:00]} 36. Nfg1 {[%clk 0:00:00]}  Rb8 {[%clk 0:00:00]} 37. Kf3 {[%clk 0:00:00]}  Rb1 {[%clk 0:00:00]} 38. Bf2 {[%clk 0:00:00]}  Rb3 {[%clk 0:00:00]} 39. Nxh3 {[%clk 0:00:00]}  Rxa3 {[%clk 0:00:00]} 40. Rxa3 {[%clk 0:00:00]}  Bxa3 {[%clk 0:00:00]} 41. Be1 {[%clk 0:00:00]}  Nb6 {[%clk 0:00:00]} 42. Nf2 {[%clk 0:00:00]}  Kb5 {[%clk 0:00:00]} 43. Nd1 {[%clk 0:00:00]}  Ka4 {[%clk 0:00:00]} 44. Bd2 {[%clk 0:00:00]}  Kb3 {[%clk 0:00:00]} 45. Ne3 {[%clk 0:00:00]}  Nxe3 {[%clk 0:00:00]} 46. Bxe3 {[%clk 0:00:00]}  Nc8 {[%clk 0:00:00]} 47. h4 {[%clk 0:00:00]}  Ne7 {[%clk 0:00:00]} 48. Kg4 {[%clk 0:00:00]}  Bb2 {[%clk 0:00:00]} 49. Bd2 {[%clk 0:00:00]}  Kc2 {[%clk 0:00:00]} 50. Be3 {[%clk 0:00:00]}  Nf5 {[%clk 0:00:00]} 51. Bf2 {[%clk 0:00:00]}  Bxc3 {[%clk 0:00:00]} 52. Nxc3 {[%clk 0:00:00]}  Kxc3 {[%clk 0:00:00]} 53. h5 {[%clk 0:00:00]}  gxh5+ {[%clk 0:00:00]} 54. Kxh5 {[%clk 0:00:00]}  Kd2 {[%clk 0:00:00]} 55. g6 {[%clk 0:00:00]}  fxg6+ {[%clk 0:00:00]} 56. Kxg6 {[%clk 0:00:00]}  c3 {[%clk 0:00:00]} 57. Kf6 {[%clk 0:00:00]}  c2 {[%clk 0:00:00]} 58. Kxe6 {[%clk 0:00:00]}  c1=Q {[%clk 0:00:00]} 59. Kxf5 {[%clk 0:00:00]}  Ke2 {[%clk 0:00:00]} 60. Bh4 {[%clk 0:00:00]}  Kf3 {[%clk 0:00:00]} 61. Bg5 {[%clk 0:00:00]}  Qc2+ {[%clk 0:00:00]} 62. Kf6 {[%clk 0:00:00]}  Kg4 {[%clk 0:00:00]} 63. Ke6 {[%clk 0:00:00]}  Qc6+ {[%clk 0:00:00]} 64. Kf7 {[%clk 0:00:00]}  Kf5 {[%clk 0:00:00]} 65. Kg7 {[%clk 0:00:00]}  Qe6 {[%clk 0:00:00]} 0-1


[Site "https://www.chess.com"]

[Event "Titled Tuesday Blitz May 2 Early 2023"]
[White "Mendez Fortes, Eduardo Jesus"]
[Black "Kalajzic, Ivan"]
[WhiteFideId "3502376"]
[BlackFideId "14506378"]
[WhiteElo "2307"]
[BlackElo "2203"]
[Result "0-1"]
[Round "01"]
[TimeControl "180+2"]
[Date "2023.05.02"]
[WhiteClock "0:00:00"]
[BlackClock "0:00:00"]

1. e4 {[%clk 0:00:01]}  Nc6 {[%clk 0:00:01]} 2. Nf3 {[%clk 0:00:01]}  d6 {[%clk 0:00:01]} 3. Bb5 {[%clk 0:00:01]}  a6 {[%clk 0:00:01]} 4. Bxc6+ {[%clk 0:00:01]}  bxc6 {[%clk 0:00:01]} 5. O-O {[%clk 0:00:01]}  Nf6 {[%clk 0:00:01]} 6. Re1 {[%clk 0:00:01]}  Nd7 {[%clk 0:00:01]} 7. d4 {[%clk 0:00:01]}  c5 {[%clk 0:00:01]} 8. d5 {[%clk 0:00:01]}  g6 {[%clk 0:00:01]} 9. c4 {[%clk 0:00:01]}  Bg7 {[%clk 0:00:01]} 10. Qc2 {[%clk 0:00:01]}  O-O {[%clk 0:00:01]} 11. Bd2 {[%clk 0:00:01]}  Re8 {[%clk 0:00:01]} 12. Bc3 {[%clk 0:00:01]}  e5 {[%clk 0:00:01]} 13. dxe6 {[%clk 0:00:01]}  Rxe6 {[%clk 0:00:01]} 14. Bxg7 {[%clk 0:00:01]}  Kxg7 {[%clk 0:00:01]} 15. Nc3 {[%clk 0:00:01]}  Bb7 {[%clk 0:00:01]} 16. Nd2 {[%clk 0:00:01]}  Qf6 {[%clk 0:00:01]} 17. Nd5 {[%clk 0:00:01]}  Bxd5 {[%clk 0:00:01]} 18. cxd5 {[%clk 0:00:01]}  Re7 {[%clk 0:00:01]} 19. Re2 {[%clk 0:00:00]}  Rae8 {[%clk 0:00:01]} 20. Rae1 {[%clk 0:00:00]}  Qd4 {[%clk 0:00:01]} 21. Kh1 {[%clk 0:00:00]}  f5 {[%clk 0:00:01]} 22. f3 {[%clk 0:00:00]}  Nf6 {[%clk 0:00:01]} 23. Nb3 {[%clk 0:00:00]}  Qa4 {[%clk 0:00:00]} 24. exf5 {[%clk 0:00:00]}  Rxe2 {[%clk 0:00:00]} 25. Rxe2 {[%clk 0:00:00]}  Rxe2 {[%clk 0:00:00]} 26. Qxe2 {[%clk 0:00:00]}  Nxd5 {[%clk 0:00:00]} 27. fxg6 {[%clk 0:00:00]}  hxg6 {[%clk 0:00:00]} 28. Nc1 {[%clk 0:00:00]}  Qd4 {[%clk 0:00:00]} 29. h3 {[%clk 0:00:00]}  Ne3 {[%clk 0:00:00]} 30. Nd3 {[%clk 0:00:00]}  Nf5 {[%clk 0:00:00]} 31. g4 {[%clk 0:00:00]}  Ng3+ {[%clk 0:00:00]} 0-1


[Site "https://www.chess.com"]

[Event "Titled Tuesday Blitz May 2 Early 2023"]
[White "Tsyhanchuk, Stanislav"]
[Black "Domingo Nunez, Ruben"]
[WhiteFideId "13505130"]
[BlackFideId "22245570"]
[WhiteElo "2173"]
[BlackElo "2404"]
[Result "0-1"]
[Round "01"]
[TimeControl "180+2"]
[Date "2023.05.02"]
[WhiteClock "0:00:00"]
[BlackClock "0:00:01"]

1. c4 {[%clk 0:00:01]}  f5 {[%clk 0:00:01]} 2. d4 {[%clk 0:00:01]}  Nf6 {[%clk 0:00:01]} 3. Nc3 {[%clk 0:00:01]}  d6 {[%clk 0:00:01]} 4. g3 {[%clk 0:00:01]}  g6 {[%clk 0:00:01]} 5. Bg2 {[%clk 0:00:01]}  Bg7 {[%clk 0:00:01]} 6. e3 {[%clk 0:00:01]}  O-O {[%clk 0:00:01]} 7. Nge2 {[%clk 0:00:01]}  Nc6 {[%clk 0:00:01]} 8. d5 {[%clk 0:00:01]}  Ne5 {[%clk 0:00:01]} 9. b3 {[%clk 0:00:01]}  c5 {[%clk 0:00:01]} 10. Bb2 {[%clk 0:00:01]}  a6 {[%clk 0:00:01]} 11. O-O {[%clk 0:00:01]}  b5 {[%clk 0:00:01]} 12. cxb5 {[%clk 0:00:01]}  axb5 {[%clk 0:00:01]} 13. Nxb5 {[%clk 0:00:01]}  Ba6 {[%clk 0:00:01]} 14. Nbc3 {[%clk 0:00:01]}  Qb6 {[%clk 0:00:01]} 15. Qd2 {[%clk 0:00:01]}  Rfb8 {[%clk 0:00:01]} 16. Rfd1 {[%clk 0:00:01]}  Nc4 {[%clk 0:00:01]} 17. bxc4 {[%clk 0:00:01]}  Qxb2 {[%clk 0:00:01]} 18. Qxb2 {[%clk 0:00:01]}  Rxb2 {[%clk 0:00:01]} 19. Nf4 {[%clk 0:00:00]}  Ng4 {[%clk 0:00:01]} 20. Nce2 {[%clk 0:00:00]}  Bxc4 {[%clk 0:00:01]} 21. h3 {[%clk 0:00:00]}  Bxe2 {[%clk 0:00:01]} 22. Nxe2 {[%clk 0:00:00]}  Rxe2 {[%clk 0:00:01]} 23. a4 {[%clk 0:00:00]} 0-1


[Site "https://www.chess.com"]

[Event "Titled Tuesday Blitz May 2 Early 2023"]
[White "Kornyukov, Alexey"]
[Black "Jia, Haoxiang"]
[WhiteFideId "4150457"]
[BlackFideId "8602999"]
[WhiteElo "2352"]
[BlackElo "2331"]
[Result "0-1"]
[Round "01"]
[TimeControl "180+2"]
[Date "2023.05.02"]
[WhiteClock "0:00:00"]
[BlackClock "0:00:00"]

1. e4 {[%clk 0:00:01]}  c5 {[%clk 0:00:01]} 2. Nf3 {[%clk 0:00:01]}  d6 {[%clk 0:00:01]} 3. c3 {[%clk 0:00:01]}  Nf6 {[%clk 0:00:01]} 4. Be2 {[%clk 0:00:01]}  Nc6 {[%clk 0:00:01]} 5. d4 {[%clk 0:00:01]}  cxd4 {[%clk 0:00:01]} 6. cxd4 {[%clk 0:00:01]}  g6 {[%clk 0:00:01]} 7. O-O {[%clk 0:00:01]}  Bg7 {[%clk 0:00:01]} 8. Nc3 {[%clk 0:00:01]}  O-O {[%clk 0:00:01]} 9. Be3 {[%clk 0:00:01]}  Bg4 {[%clk 0:00:01]} 10. h3 {[%clk 0:00:01]}  Bxf3 {[%clk 0:00:01]} 11. Bxf3 {[%clk 0:00:01]}  e5 {[%clk 0:00:01]} 12. dxe5 {[%clk 0:00:01]}  dxe5 {[%clk 0:00:01]} 13. Qxd8 {[%clk 0:00:01]}  Rfxd8 {[%clk 0:00:01]} 14. Rfd1 {[%clk 0:00:01]}  Nd4 {[%clk 0:00:01]} 15. Bxd4 {[%clk 0:00:01]}  Rxd4 {[%clk 0:00:01]} 16. Nd5 {[%clk 0:00:01]}  Nxd5 {[%clk 0:00:01]} 17. exd5 {[%clk 0:00:01]}  Rc8 {[%clk 0:00:01]} 18. Rxd4 {[%clk 0:00:01]}  exd4 {[%clk 0:00:01]} 19. d6 {[%clk 0:00:01]}  Rd8 {[%clk 0:00:01]} 20. Bxb7 {[%clk 0:00:01]}  Rxd6 {[%clk 0:00:01]} 21. Be4 {[%clk 0:00:01]}  d3 {[%clk 0:00:01]} 22. Rd1 {[%clk 0:00:01]}  d2 {[%clk 0:00:01]} 23. Kf1 {[%clk 0:00:01]}  Bxb2 {[%clk 0:00:01]} 24. Ke2 {[%clk 0:00:01]}  Bc1 {[%clk 0:00:01]} 25. Bd3 {[%clk 0:00:01]}  f5 {[%clk 0:00:01]} 26. f4 {[%clk 0:00:01]}  Kf7 {[%clk 0:00:01]} 27. Bc4+ {[%clk 0:00:01]}  Kf6 {[%clk 0:00:01]} 28. Bb3 {[%clk 0:00:01]}  g5 {[%clk 0:00:01]} 29. fxg5+ {[%clk 0:00:01]}  Kxg5 {[%clk 0:00:01]} 30. Rf1 {[%clk 0:00:01]}  Rd4 {[%clk 0:00:01]} 31. Bc2 {[%clk 0:00:01]}  f4 {[%clk 0:00:01]} 32. Rf3 {[%clk 0:00:01]}  Rd5 {[%clk 0:00:01]} 33. Rf1 {[%clk 0:00:00]}  Re5+ {[%clk 0:00:01]} 34. Kd1 {[%clk 0:00:00]}  h5 {[%clk 0:00:01]} 35. Ba4 {[%clk 0:00:00]}  a5 {[%clk 0:00:01]} 36. Bd7 {[%clk 0:00:00]}  Re4 {[%clk 0:00:01]} 37. Rg1 {[%clk 0:00:00]}  a4 {[%clk 0:00:01]} 38. Bc6 {[%clk 0:00:00]}  Rc4 {[%clk 0:00:01]} 39. Bd5 {[%clk 0:00:00]}  Rd4 {[%clk 0:00:01]} 40. Bc6 {[%clk 0:00:00]}  Kh4 {[%clk 0:00:01]} 41. Rf1 {[%clk 0:00:00]}  a3 {[%clk 0:00:01]} 42. Rf3 {[%clk 0:00:00]}  Kg5 {[%clk 0:00:01]} 43. Rf1 {[%clk 0:00:00]}  Rd6 {[%clk 0:00:01]} 44. Ba4 {[%clk 0:00:00]}  Re6 {[%clk 0:00:01]} 45. Bb3 {[%clk 0:00:00]}  Re3 {[%clk 0:00:01]} 46. Bd5 {[%clk 0:00:00]}  Rd3 {[%clk 0:00:01]} 47. Bf3 {[%clk 0:00:00]}  Kh4 {[%clk 0:00:01]} 48. Be2 {[%clk 0:00:00]}  Rd4 {[%clk 0:00:01]} 49. Rf3 {[%clk 0:00:00]}  Bb2 {[%clk 0:00:01]} 50. Rb3 {[%clk 0:00:00]}  Rd5 {[%clk 0:00:00]} 51. Bd3 {[%clk 0:00:00]}  Bc1 {[%clk 0:00:00]} 52. Be2 {[%clk 0:00:00]}  Re5 {[%clk 0:00:00]} 53. Rd3 {[%clk 0:00:00]}  Kg5 {[%clk 0:00:00]} 54. Rd4 {[%clk 0:00:00]}  h4 {[%clk 0:00:00]} 55. Rd8 {[%clk 0:00:00]}  Kf5 {[%clk 0:00:00]} 56. Rf8+ {[%clk 0:00:00]}  Ke4 {[%clk 0:00:00]} 57. Bf3+ {[%clk 0:00:00]}  Ke3 {[%clk 0:00:00]} 58. Rb8 {[%clk 0:00:00]}  Kf2 {[%clk 0:00:00]} 59. Kc2 {[%clk 0:00:00]}  Re3 {[%clk 0:00:00]} 60. Rd8 {[%clk 0:00:00]}  Rxf3 {[%clk 0:00:00]} 61. gxf3 {[%clk 0:00:00]}  Kxf3 {[%clk 0:00:00]} 62. Rd3+ {[%clk 0:00:00]}  Ke2 {[%clk 0:00:00]} 63. Rd4 {[%clk 0:00:00]}  f3 {[%clk 0:00:00]} 64. Re4+ {[%clk 0:00:00]}  Kf2 {[%clk 0:00:00]} 65. Kd1 {[%clk 0:00:00]}  Kg3 {[%clk 0:00:00]} 66. Rg4+ {[%clk 0:00:00]}  Kxh3 {[%clk 0:00:00]} 67. Rf4 {[%clk 0:00:00]}  Kg3 {[%clk 0:00:00]} 68. Kc2 {[%clk 0:00:00]}  Kxf4 {[%clk 0:00:00]} 0-1


[Site "https://www.chess.com"]

[Event "Titled Tuesday Blitz May 2 Early 2023"]
[White "Wadsworth, Matthew J"]
[Black "Bintang, Rasyid A. Hidayat"]
[WhiteFideId "415804"]
[BlackFideId "7105355"]
[WhiteElo "2330"]
[BlackElo "1820"]
[Result "1/2-1/2"]
[Round "01"]
[TimeControl "180+2"]
[Date "2023.05.02"]
[WhiteClock "0:00:00"]
[BlackClock "0:00:00"]

1. Nf3 {[%clk 0:00:01]}  d5 {[%clk 0:00:01]} 2. g3 {[%clk 0:00:01]}  Nf6 {[%clk 0:00:01]} 3. Bg2 {[%clk 0:00:01]}  Bf5 {[%clk 0:00:01]} 4. c4 {[%clk 0:00:01]}  c6 {[%clk 0:00:01]} 5. Qb3 {[%clk 0:00:01]}  Qb6 {[%clk 0:00:01]} 6. d3 {[%clk 0:00:01]}  e6 {[%clk 0:00:01]} 7. Be3 {[%clk 0:00:01]}  Qa6 {[%clk 0:00:01]} 8. Nh4 {[%clk 0:00:01]}  Bg4 {[%clk 0:00:01]} 9. h3 {[%clk 0:00:01]}  Bh5 {[%clk 0:00:01]} 10. g4 {[%clk 0:00:01]}  Bg6 {[%clk 0:00:01]} 11. O-O {[%clk 0:00:01]}  Nbd7 {[%clk 0:00:01]} 12. Nd2 {[%clk 0:00:01]}  Bc5 {[%clk 0:00:01]} 13. Bxc5 {[%clk 0:00:01]}  Nxc5 {[%clk 0:00:01]} 14. Qc2 {[%clk 0:00:01]}  Qb6 {[%clk 0:00:01]} 15. Rfc1 {[%clk 0:00:01]}  Ncd7 {[%clk 0:00:01]} 16. b4 {[%clk 0:00:01]}  O-O {[%clk 0:00:01]} 17. a4 {[%clk 0:00:01]}  a6 {[%clk 0:00:01]} 18. Rab1 {[%clk 0:00:01]}  Rae8 {[%clk 0:00:01]} 19. Ndf3 {[%clk 0:00:01]}  e5 {[%clk 0:00:01]} 20. Nxg6 {[%clk 0:00:00]}  hxg6 {[%clk 0:00:01]} 21. g5 {[%clk 0:00:00]}  Nh5 {[%clk 0:00:01]} 22. cxd5 {[%clk 0:00:00]}  cxd5 {[%clk 0:00:01]} 23. Qc7 {[%clk 0:00:00]}  Qe6 {[%clk 0:00:01]} 24. Qxb7 {[%clk 0:00:00]}  Nf4 {[%clk 0:00:01]} 25. Rc6 {[%clk 0:00:00]}  Qf5 {[%clk 0:00:01]} 26. Kf1 {[%clk 0:00:00]}  e4 {[%clk 0:00:01]} 27. Nh4 {[%clk 0:00:00]}  Qxg5 {[%clk 0:00:01]} 28. Qxd7 {[%clk 0:00:00]}  Qxh4 {[%clk 0:00:01]} 29. dxe4 {[%clk 0:00:00]}  dxe4 {[%clk 0:00:00]} 30. Qg4 {[%clk 0:00:00]}  Nxg2 {[%clk 0:00:00]} 31. Kxg2 {[%clk 0:00:00]}  Qd8 {[%clk 0:00:00]} 32. Rxa6 {[%clk 0:00:00]}  e3 {[%clk 0:00:00]} 33. Ra5 {[%clk 0:00:00]}  exf2 {[%clk 0:00:00]} 34. Kxf2 {[%clk 0:00:00]}  Qd2 {[%clk 0:00:00]} 35. Rb3 {[%clk 0:00:00]}  Re6 {[%clk 0:00:00]} 36. Rd3 {[%clk 0:00:00]}  Rf6+ {[%clk 0:00:00]} 37. Rf3 {[%clk 0:00:00]}  Re6 {[%clk 0:00:00]} 38. Rd3 {[%clk 0:00:00]}  Rf6+ {[%clk 0:00:00]} 39. Rf3 {[%clk 0:00:00]}  Re6 {[%clk 0:00:00]} 40. Rd3 {[%clk 0:00:00]} 1/2-1/2


[Site "https://www.chess.com"]

[Event "Titled Tuesday Blitz May 2 Early 2023"]
[White "Suder, Jakub"]
[Black "Kostiukov, Alexandr"]
[WhiteFideId "1195310"]
[BlackFideId "14108100"]
[WhiteElo "2287"]
[BlackElo "2202"]
[Result "1-0"]
[Round "01"]
[TimeControl "180+2"]
[Date "2023.05.02"]
[WhiteClock "0:00:01"]
[BlackClock "0:00:00"]

1. d4 {[%clk 0:00:01]}  g6 {[%clk 0:00:01]} 2. c4 {[%clk 0:00:01]}  Bg7 {[%clk 0:00:01]} 3. Nc3 {[%clk 0:00:01]}  d6 {[%clk 0:00:01]} 4. e4 {[%clk 0:00:01]}  e5 {[%clk 0:00:01]} 5. Be3 {[%clk 0:00:01]}  exd4 {[%clk 0:00:01]} 6. Bxd4 {[%clk 0:00:01]}  Nf6 {[%clk 0:00:01]} 7. f3 {[%clk 0:00:01]}  Nc6 {[%clk 0:00:01]} 8. Be3 {[%clk 0:00:01]}  O-O {[%clk 0:00:01]} 9. Nge2 {[%clk 0:00:01]}  Ne5 {[%clk 0:00:01]} 10. Nd4 {[%clk 0:00:01]}  c6 {[%clk 0:00:01]} 11. Be2 {[%clk 0:00:01]}  d5 {[%clk 0:00:01]} 12. cxd5 {[%clk 0:00:01]}  cxd5 {[%clk 0:00:01]} 13. exd5 {[%clk 0:00:01]}  Nxd5 {[%clk 0:00:01]} 14. Nxd5 {[%clk 0:00:01]}  Qxd5 {[%clk 0:00:01]} 15. Nb3 {[%clk 0:00:01]}  Rd8 {[%clk 0:00:01]} 16. Kf2 {[%clk 0:00:01]}  Be6 {[%clk 0:00:01]} 17. Qxd5 {[%clk 0:00:01]}  Bxd5 {[%clk 0:00:01]} 18. Rhd1 {[%clk 0:00:01]}  b6 {[%clk 0:00:01]} 19. Bd4 {[%clk 0:00:01]}  Nc4 {[%clk 0:00:01]} 20. Bxg7 {[%clk 0:00:01]}  Kxg7 {[%clk 0:00:01]} 21. Rxd5 {[%clk 0:00:01]}  Rxd5 {[%clk 0:00:01]} 22. Bxc4 {[%clk 0:00:01]}  Rd6 {[%clk 0:00:01]} 23. Re1 {[%clk 0:00:01]}  Rc8 {[%clk 0:00:01]} 24. Ba6 {[%clk 0:00:01]}  Rc2+ {[%clk 0:00:01]} 25. Re2 {[%clk 0:00:01]}  Rdc6 {[%clk 0:00:01]} 26. Bd3 {[%clk 0:00:01]}  Rxe2+ {[%clk 0:00:01]} 27. Kxe2 {[%clk 0:00:01]}  Kf6 {[%clk 0:00:01]} 28. Ke3 {[%clk 0:00:01]}  Ke7 {[%clk 0:00:01]} 29. Kd4 {[%clk 0:00:01]}  Rd6+ {[%clk 0:00:01]} 30. Ke3 {[%clk 0:00:01]}  Re6+ {[%clk 0:00:01]} 31. Kd2 {[%clk 0:00:01]}  Rd6 {[%clk 0:00:01]} 32. Nc1 {[%clk 0:00:01]}  h5 {[%clk 0:00:00]} 33. h4 {[%clk 0:00:01]}  Rd4 {[%clk 0:00:00]} 34. g3 {[%clk 0:00:01]}  Rd8 {[%clk 0:00:00]} 35. Ne2 {[%clk 0:00:01]}  Kd6 {[%clk 0:00:00]} 36. Nf4 {[%clk 0:00:01]}  Ke5 {[%clk 0:00:00]} 37. Ke3 {[%clk 0:00:01]}  Rc8 {[%clk 0:00:00]} 38. b3 {[%clk 0:00:01]}  Rc1 {[%clk 0:00:00]} 39. Ne2 {[%clk 0:00:01]}  Ra1 {[%clk 0:00:00]} 40. a4 {[%clk 0:00:01]}  Re1 {[%clk 0:00:00]} 41. Bc4 {[%clk 0:00:01]}  Kf6 {[%clk 0:00:00]} 42. Kd4 {[%clk 0:00:01]}  Rf1 {[%clk 0:00:00]} 43. f4 {[%clk 0:00:01]}  Rd1+ {[%clk 0:00:00]} 44. Ke4 {[%clk 0:00:01]}  Re1 {[%clk 0:00:00]} 45. Kd5 {[%clk 0:00:01]}  Kf5 {[%clk 0:00:00]} 46. Kc6 {[%clk 0:00:01]}  f6 {[%clk 0:00:00]} 47. Kb7 {[%clk 0:00:01]}  Kg4 {[%clk 0:00:00]} 48. Kxa7 {[%clk 0:00:01]} 1-0


[Site "https://www.chess.com"]

[Event "Titled Tuesday Blitz May 2 Early 2023"]
[White "Martinez Reyes, Pedro Ramon"]
[Black "Kraus, Tomas"]
[WhiteFideId "3901807"]
[BlackFideId "331708"]
[WhiteElo "2340"]
[BlackElo "2389"]
[Result "1-0"]
[Round "01"]
[TimeControl "180+2"]
[Date "2023.05.02"]
[WhiteClock "0:00:00"]
[BlackClock "0:00:00"]

1. d4 {[%clk 0:00:01]}  Nf6 {[%clk 0:00:01]} 2. c4 {[%clk 0:00:01]}  c5 {[%clk 0:00:01]} 3. d5 {[%clk 0:00:01]}  e6 {[%clk 0:00:01]} 4. Nc3 {[%clk 0:00:01]}  exd5 {[%clk 0:00:01]} 5. cxd5 {[%clk 0:00:01]}  Bd6 {[%clk 0:00:01]} 6. Nf3 {[%clk 0:00:01]}  O-O {[%clk 0:00:01]} 7. g3 {[%clk 0:00:01]}  a6 {[%clk 0:00:01]} 8. a4 {[%clk 0:00:01]}  Re8 {[%clk 0:00:01]} 9. Bg2 {[%clk 0:00:01]}  Bc7 {[%clk 0:00:01]} 10. d6 {[%clk 0:00:01]}  Ba5 {[%clk 0:00:01]} 11. O-O {[%clk 0:00:01]}  Nc6 {[%clk 0:00:01]} 12. Qc2 {[%clk 0:00:01]}  Rb8 {[%clk 0:00:01]} 13. e4 {[%clk 0:00:01]}  b5 {[%clk 0:00:01]} 14. axb5 {[%clk 0:00:01]}  axb5 {[%clk 0:00:01]} 15. Bg5 {[%clk 0:00:01]}  Bxc3 {[%clk 0:00:01]} 16. bxc3 {[%clk 0:00:01]}  h6 {[%clk 0:00:01]} 17. Bh4 {[%clk 0:00:01]}  Re6 {[%clk 0:00:01]} 18. Bh3 {[%clk 0:00:01]}  Qe8 {[%clk 0:00:01]} 19. Bxe6 {[%clk 0:00:01]}  Qxe6 {[%clk 0:00:01]} 20. Bxf6 {[%clk 0:00:01]}  Qxf6 {[%clk 0:00:01]} 21. Qe2 {[%clk 0:00:01]}  Qxd6 {[%clk 0:00:00]} 22. Qe3 {[%clk 0:00:01]}  Qe7 {[%clk 0:00:00]} 23. Rfd1 {[%clk 0:00:00]}  b4 {[%clk 0:00:00]} 24. cxb4 {[%clk 0:00:00]}  cxb4 {[%clk 0:00:00]} 25. Nd4 {[%clk 0:00:00]}  Ne5 {[%clk 0:00:00]} 26. Nf5 {[%clk 0:00:00]}  Qf8 {[%clk 0:00:00]} 27. f4 {[%clk 0:00:00]}  Nc4 {[%clk 0:00:00]} 28. Qd4 {[%clk 0:00:00]}  Nb6 {[%clk 0:00:00]} 29. Rab1 {[%clk 0:00:00]}  d5 {[%clk 0:00:00]} 30. Rxb4 {[%clk 0:00:00]}  dxe4 {[%clk 0:00:00]} 31. Nd6 {[%clk 0:00:00]} 1-0


[Site "https://www.chess.com"]

[Event "Titled Tuesday Blitz May 2 Early 2023"]
[White "Pajeken, Jakob Leon"]
[Black "Garrido, Denis"]
[WhiteFideId "12942839"]
[BlackFideId "601217"]
[WhiteElo "2414"]
[BlackElo "2205"]
[Result "1-0"]
[Round "01"]
[TimeControl "180+2"]
[Date "2023.05.02"]
[WhiteClock "0:00:00"]
[BlackClock "0:00:00"]

1. d4 {[%clk 0:00:01]}  Nf6 {[%clk 0:00:01]} 2. Nf3 {[%clk 0:00:01]}  g6 {[%clk 0:00:01]} 3. g3 {[%clk 0:00:01]}  Bg7 {[%clk 0:00:01]} 4. Bg2 {[%clk 0:00:01]}  O-O {[%clk 0:00:01]} 5. O-O {[%clk 0:00:01]}  d6 {[%clk 0:00:01]} 6. b3 {[%clk 0:00:01]}  a5 {[%clk 0:00:01]} 7. Bb2 {[%clk 0:00:01]}  a4 {[%clk 0:00:01]} 8. c4 {[%clk 0:00:01]}  c6 {[%clk 0:00:01]} 9. Nc3 {[%clk 0:00:01]}  a3 {[%clk 0:00:01]} 10. Bc1 {[%clk 0:00:01]}  Bf5 {[%clk 0:00:01]} 11. Nh4 {[%clk 0:00:01]}  Bd7 {[%clk 0:00:01]} 12. e4 {[%clk 0:00:01]}  e5 {[%clk 0:00:01]} 13. Nf3 {[%clk 0:00:01]}  Qe7 {[%clk 0:00:01]} 14. h3 {[%clk 0:00:01]}  Rd8 {[%clk 0:00:01]} 15. Re1 {[%clk 0:00:01]}  h6 {[%clk 0:00:01]} 16. Be3 {[%clk 0:00:01]}  Be8 {[%clk 0:00:01]} 17. Qd2 {[%clk 0:00:01]}  Kh7 {[%clk 0:00:01]} 18. Rad1 {[%clk 0:00:01]}  Na6 {[%clk 0:00:01]} 19. Qc1 {[%clk 0:00:01]}  Qc7 {[%clk 0:00:01]} 20. Qxa3 {[%clk 0:00:01]}  Nc5 {[%clk 0:00:01]} 21. Qc1 {[%clk 0:00:01]}  Ncxe4 {[%clk 0:00:01]} 22. Nxe4 {[%clk 0:00:01]}  Nxe4 {[%clk 0:00:01]} 23. Qc2 {[%clk 0:00:01]}  Nf6 {[%clk 0:00:01]} 24. dxe5 {[%clk 0:00:01]}  dxe5 {[%clk 0:00:01]} 25. Bc1 {[%clk 0:00:01]}  Rxd1 {[%clk 0:00:01]} 26. Rxd1 {[%clk 0:00:01]}  Bd7 {[%clk 0:00:01]} 27. g4 {[%clk 0:00:00]}  Kg8 {[%clk 0:00:00]} 28. Qe2 {[%clk 0:00:00]}  Nh7 {[%clk 0:00:00]} 29. c5 {[%clk 0:00:00]}  Nf8 {[%clk 0:00:00]} 30. b4 {[%clk 0:00:00]}  Ne6 {[%clk 0:00:00]} 31. Qc4 {[%clk 0:00:00]}  Rb8 {[%clk 0:00:00]} 32. a4 {[%clk 0:00:00]}  b5 {[%clk 0:00:00]} 33. cxb6 {[%clk 0:00:00]}  Rxb6 {[%clk 0:00:00]} 34. a5 {[%clk 0:00:00]}  Rb8 {[%clk 0:00:00]} 35. Be3 {[%clk 0:00:00]}  Bf8 {[%clk 0:00:00]} 36. Bb6 {[%clk 0:00:00]}  Qc8 {[%clk 0:00:00]} 37. Nxe5 {[%clk 0:00:00]}  Be8 {[%clk 0:00:00]} 38. Bxc6 {[%clk 0:00:00]}  Nf4 {[%clk 0:00:00]} 39. Qxf4 {[%clk 0:00:00]} 1-0


[Site "https://www.chess.com"]